fUSD/lending_fUSD_20240222
["ID","MTS","AMOUNT","RATE_DAILY","PERIOD"]
[314859429,1708597852904,-1356.59,0.00035616,2]
[314859430,1708597852914,-500.0,0.00035616,2]
[314859431,1708597852924,-500.0,0.00035616,2]
[314859432,1708597852935,-861.94,0.00035616,2]
[314859433,1708597852944,-500.0,0.00035616,2]
[314859434,1708597852954,-864.984094,0.00035616,7]
[314859435,1708597852964,-1773.24,0.00035616,2]
[314859436,1708597852974,-500.0,0.00035616,2]
[314859437,1708597852983,-500.0,0.00035616,2]
[314859438,1708597852993,-151.0,0.00035616,7]
[314859439,1708597853003,-500.0,0.00035616,2]
[314859440,1708597853012,-500.0,0.00035616,2]
[314859441,1708597853022,-742.46,0.00035616,2]
[314859442,1708597853032,-864.984094,0.00035616,7]
[314859443,1708597853041,-500.0,0.00035616,2]
[314859444,1708597853051,-151.0,0.00035616,7]
[314859445,1708597853061,-522.50317673,0.00035616,2]
[314859446,1708597853070,-3502.77,0.00035616,2]
[314859447,1708597853080,-1934.28,0.00035616,2]
[314859448,1708597853089,-547.73,0.00035616,2]
[314859449,1708597853098,-5183.6,0.00035616,2]
[314859450,1708597853108,-500.0,0.00035616,2]
[314859451,1708597853117,-5537.08,0.00035616,2]
[314859452,1708597853127,-981.93,0.00035616,2]
[314859453,1708597853136,-3870.72,0.00035616,2]
[314859454,1708597853145,-374.47719534,0.00035616,2]
[314859455,1708597853155,-1321.86,0.00035616,2]
[314859456,1708597853164,-1691.266654,0.00035616,7]
[314859457,1708597853174,-500.0,0.00035616,2]
[314859458,1708597853183,-2357.14,0.00035616,2]
[314859459,1708597853193,-500.0,0.00035616,2]
[314859460,1708597853202,-1723.64,0.00035616,2]
[314859461,1708597853211,-954.03,0.00035616,2]
[314859462,1708597853221,-1189.67,0.00035616,2]
[314859463,1708597853230,-1691.266654,0.00035616,7]
[314859464,1708597853250,-425.02935246,0.00035616,2]
[314859465,1708597853262,-1909.71,0.00035616,2]
[314859466,1708597853272,-500.0,0.00035616,2]
[314859467,1708597853282,-3603.175331,0.00035616,7]
[314859468,1708597853292,-412.67501801,0.00035616,2]
[314859469,1708597853301,-6696.14,0.00035616,2]
[314859470,1708597853311,-500.0,0.00035616,2]
[314859471,1708597853321,-519.02,0.00035616,2]
[314859472,1708597853331,-500.0,0.00035616,2]
[314859473,1708597853341,-943.82,0.00035616,2]
[314859474,1708597853351,-2313.0,0.00035616,5]
[314859475,1708597853361,-200.0,0.00035619,3]
[314859476,1708597853371,-239.48423977,0.00035623,2]
[314859477,1708597853381,-150.0,0.00035628,2]
[314859478,1708597853391,-706.43,0.0003563,2]
[314859479,1708597853402,-150.0,0.0003563,2]
[314859480,1708597853412,-150.0,0.00035631,2]
[314859481,1708597853422,-150.0,0.00035638,2]
[314859482,1708597853432,-50000.0,0.0003564,15]
[314859483,1708597853443,-50000.0,0.0003564,15]
[314859484,1708597853454,-50000.0,0.0003564,15]
[314859485,1708597853464,-27978.58476957,0.0003564,12]
[314859486,1708597853475,-151.0,0.0003564,7]
[314859487,1708597853489,-151.0,0.0003564,7]
[314859488,1708597853502,-151.0,0.0003564,7]
[314859489,1708597853512,-319.400995,0.0003564,7]
[314859490,1708597853523,-151.0,0.0003564,7]
[314859491,1708597853532,-375.203115,0.0003564,7]
[314859492,1708597853542,-319.400995,0.0003564,7]
[314859493,1708597853552,-375.203115,0.0003564,7]
[314859494,1708597853562,-151.0,0.0003564,7]
[314859495,1708597853572,-863.292361,0.0003564,7]
[314859496,1708597853582,-151.0,0.0003564,7]
[314859497,1708597853591,-863.292361,0.0003564,7]
[314859498,1708597853601,-1738.159296,0.0003564,7]
[314859499,1708597853611,-151.0,0.0003564,7]
[314859500,1708597853620,-1738.159296,0.0003564,7]
[314859501,1708597853630,-151.0,0.0003564,7]
[314859502,1708597853640,-891.525773,0.0003564,7]
[314859503,1708597853649,-891.525773,0.0003564,7]
[314859504,1708597853659,-151.0,0.0003564,7]
[314859505,1708597853668,-151.0,0.0003564,7]
[314859506,1708597853679,-507.55354,0.0003564,7]
[314859507,1708597853689,-507.55354,0.0003564,7]
[314859508,1708597853699,-182.007343,0.0003564,7]
[314859509,1708597853708,-182.007343,0.0003564,7]
[314859510,1708597853718,-34181.03568691,0.0003564,15]
[314859511,1708597853727,-151.0,0.0003564,7]
[314859512,1708597853737,-151.0,0.0003564,7]
[314859513,1708597853747,-151.0,0.0003564,7]
[314859514,1708597853756,-151.0,0.0003564,7]
[314859515,1708597853767,-151.0,0.0003564,7]
[314859516,1708597853777,-500.0,0.0003564,7]
[314859517,1708597853788,-500.0,0.0003564,7]
[314859518,1708597853799,-164.940406,0.0003564,7]
[314859519,1708597853809,-151.0,0.0003564,7]
[314859520,1708597853819,-164.940406,0.0003564,7]
[314859521,1708597853831,-253.89827,0.0003564,7]
[314859522,1708597853842,-205.701602,0.0003564,7]
[314859523,1708597853853,-156.990818,0.0003564,7]
[314859524,1708597853863,-253.89827,0.0003564,7]
[314859525,1708597853874,-205.701602,0.0003564,7]
[314859526,1708597853884,-156.990818,0.0003564,7]
[314859527,1708597853894,-151.0,0.0003564,7]
[314859528,1708597853903,-514.098445,0.0003564,2]
[314859529,1708597853914,-151.0,0.0003564,7]
[314859530,1708597854124,-514.098445,0.0003564,2]
[314859531,1708597854133,-269.073976,0.0003564,7]
[314859532,1708597854143,-151.0,0.0003564,7]
[314859533,1708597854152,-151.0,0.0003564,7]
[314859534,1708597854161,-151.0,0.0003564,7]
[314859535,1708597854170,-151.0,0.0003564,7]
[314859536,1708597854178,-708.467553,0.0003564,7]
[314859537,1708597854188,-708.467553,0.0003564,7]
[314859538,1708597854197,-320.098904,0.0003564,7]
[314859539,1708597854207,-320.098904,0.0003564,7]
[314859540,1708597854216,-241.520072,0.0003564,7]
[314859541,1708597854225,-151.0,0.0003564,7]
[314859542,1708597854234,-241.520072,0.0003564,7]
[314859543,1708597854243,-151.0,0.0003564,7]
[314859544,1708597854253,-165.809073,0.0003564,7]
[314859545,1708597854262,-151.0,0.0003564,7]
[314859546,1708597854271,-151.0,0.0003564,7]
[314859547,1708597854280,-151.0,0.0003564,7]
[314859548,1708597854290,-916.269939,0.0003564,7]
[314859549,1708597854300,-916.269939,0.0003564,7]
[314859550,1708597854309,-185.776177,0.0003564,7]
[314859551,1708597854318,-185.776177,0.0003564,7]
[314859552,1708597854327,-481.191766,0.0003564,7]
[314859553,1708597854336,-481.191766,0.0003564,7]
[314859554,1708597854345,-523.377539,0.0003564,7]
[314859555,1708597854354,-523.377539,0.0003564,7]
[314859556,1708597854363,-2691.461799,0.0003564,7]
[314859557,1708597854372,-2691.461799,0.0003564,7]
[314859558,1708597854381,-436.296255,0.0003564,7]
[314859559,1708597854390,-162.127582,0.0003564,7]
[314859560,1708597854399,-2921.556529,0.0003564,7]
[314859561,1708597854408,-436.296255,0.0003564,7]
[314859562,1708597854421,-162.127582,0.0003564,7]
[314859563,1708597854431,-2921.556529,0.0003564,7]
[314859564,1708597854442,-151.0,0.0003564,7]
[314859565,1708597854451,-1062.433765,0.0003564,7]
[314859566,1708597854460,-1062.433765,0.0003564,7]
[314859567,1708597854469,-305.565753,0.0003564,7]
[314859568,1708597854479,-305.565753,0.0003564,7]
[314859569,1708597854489,-151.0,0.0003564,7]
[314859570,1708597854500,-5923.453846,0.0003564,7]
[314859571,1708597854509,-5923.453846,0.0003564,7]
[314859572,1708597854519,-2694.557204,0.0003564,7]
[314859573,1708597854528,-151.0,0.0003564,7]
[314859574,1708597854538,-2694.557204,0.0003564,7]
[314859575,1708597854547,-274.900625,0.0003564,7]
[314859576,1708597854557,-151.0,0.0003564,7]
[314859577,1708597854567,-274.900625,0.0003564,7]
[314859578,1708597854576,-444.502205,0.0003564,7]
[314859579,1708597854585,-444.502205,0.0003564,7]
[314859580,1708597854595,-631.890425,0.0003564,7]
[314859581,1708597854604,-631.890425,0.0003564,7]
[314859582,1708597854613,-153.202958,0.0003564,7]
[314859583,1708597854623,-151.0,0.0003564,7]
[314859584,1708597854632,-151.0,0.0003564,7]
[314859585,1708597854641,-233.94995,0.0003564,7]
[314859586,1708597854651,-151.0,0.0003564,3]
[314859587,1708597854660,-233.94995,0.0003564,7]
[314859588,1708597854669,-1421.965541,0.0003564,7]
[314859589,1708597854678,-264.889617,0.0003564,7]
[314859590,1708597854688,-1421.965541,0.0003564,7]
[314859591,1708597854698,-264.889617,0.0003564,7]
[314859592,1708597854738,-261.052876,0.0003564,7]
[314859593,1708597854747,-151.0,0.0003564,7]
[314859594,1708597854757,-151.0,0.0003564,7]
[314859595,1708597854767,-151.0,0.0003564,7]
[314859596,1708597854776,-678.090077,0.0003564,7]
[314859597,1708597854786,-261.052876,0.0003564,7]
[314859598,1708597854795,-678.090077,0.0003564,7]
[314859599,1708597854804,-169.952414,0.0003564,7]
[314859600,1708597854813,-169.952414,0.0003564,7]
[314859601,1708597854822,-519.991113,0.0003564,7]
[314859602,1708597854832,-151.0,0.0003564,7]
[314859603,1708597854841,-24555.43241056,0.0003564,15]
[314859604,1708597854850,-519.991113,0.0003564,7]
[314859605,1708597854860,-864.984094,0.0003564,7]
[314859606,1708597854869,-151.0,0.0003564,7]
[314859607,1708597854878,-864.984094,0.0003564,7]
[314859608,1708597854888,-151.0,0.0003564,7]
[314859609,1708597854897,-1691.266654,0.0003564,7]
[314859610,1708597854907,-1691.266654,0.0003564,7]
[314859611,1708597854916,-3603.175331,0.0003564,7]
[314859612,1708597854926,-150.0,0.00035643,2]
[314859613,1708597854936,-800.0,0.00035648,3]
[314859614,1708597854946,-15399.2896237,0.00035651,2]
[314859615,1708597854955,-11253.1126672,0.00035651,2]
[314859616,1708597854964,-150.960581,0.00035653,2]
[314859617,1708597854973,-150.0,0.00035662,2]
[314859618,1708597854982,-464.61,0.00035663,2]
[314859619,1708597854995,-150.0,0.00035663,2]
[314859620,1708597855005,-150.282,0.00035664,2]
[314859621,1708597855014,-150.318,0.00035664,2]
[314859622,1708597855023,-150.1,0.00035664,2]
[314859623,1708597855032,-150.0,0.00035664,2]
[314859624,1708597855041,-171.671,0.00035664,2]
[314859625,1708597855050,-249.818,0.00035664,2]
[314859626,1708597855060,-429.0,0.00035664,2]
[314859627,1708597855069,-858.0,0.00035664,2]
[314859628,1708597855078,-302.0,0.00035664,2]
[314859629,1708597855087,-315.688,0.00035664,2]
[314859630,1708597855096,-2704.92,0.00035664,2]
[314859631,1708597855106,-7819.786,0.00035664,2]
[314859632,1708597855115,-5689.776,0.00035664,2]
[314859633,1708597855125,-7427.0,0.00035664,2]
[314859634,1708597855134,-2294.0,0.00035664,2]
[314859635,1708597855143,-17511.676,0.00035664,2]
[314859636,1708597855153,-1382.272,0.00035664,2]
[314859637,1708597855163,-1880.421,0.00035664,2]
[314859638,1708597855172,-201.069,0.00035664,2]
[314859639,1708597855181,-458.0,0.00035664,2]
[314859640,1708597855191,-961.016,0.00035664,2]
[314859641,1708597855200,-717.386,0.00035664,2]
[314859642,1708597855210,-549.336,0.00035664,2]
[314859643,1708597855219,-354.558,0.00035664,2]
[314859644,1708597855227,-1285.822,0.00035664,2]
[314859645,1708597855237,-500.091619,0.00035664,7]
[314859646,1708597855246,-500.091619,0.00035664,7]
[314859647,1708597855255,-151.0,0.00035664,7]
[314859648,1708597855264,-151.0,0.00035664,7]
[314859649,1708597855273,-151.0,0.00035664,7]
[314859650,1708597855282,-269.502367,0.00035664,7]
[314859651,1708597855291,-280.106327,0.00035664,7]
[314859652,1708597855300,-280.106327,0.00035664,7]
[314859653,1708597855309,-151.0,0.00035664,7]
[314859654,1708597855318,-646.467649,0.00035664,7]
[314859655,1708597855327,-646.467649,0.00035664,7]
[314859656,1708597855336,-764.026149,0.00035664,7]
[314859657,1708597855345,-764.026149,0.00035664,7]
[314859658,1708597855354,-2037.29073,0.00035664,7]
[314859659,1708597855363,-2037.29073,0.00035664,7]
[314859660,1708597855374,-151.0,0.00035664,7]
[314859661,1708597855383,-151.0,0.00035664,7]
[314859662,1708597855392,-151.0,0.00035664,7]
[314859663,1708597855401,-150.0,0.00035668,2]
[314859664,1708597855411,-150.0,0.0003567,2]
[314859665,1708597855421,-300.0,0.00035681,2]
[314859666,1708597855430,-13155.4770479,0.00035688,2]
[314859667,1708597855441,-9613.4347121,0.00035688,2]
[314859668,1708597855450,-800.0,0.00035694,3]
[314859669,1708597855460,-1305.88558543,0.00035698,8]
[314859670,1708597855469,-16064.95075418,0.000357,2]
[314859671,1708597855479,-150.0,0.00035711,30]
[314859672,1708597855491,-150.0,0.00035711,30]
[314859673,1708597855500,-500.0,0.00035711,2]
[314859674,1708597855509,-500.0,0.00035711,2]
[314859675,1708597855518,-500.0,0.00035711,2]
[314859676,1708597855529,-562.40348841,0.00035711,2]
[314859677,1708597855538,-1372.67,0.00035711,2]
[314859678,1708597855547,-1372.67,0.00035711,2]
[314859679,1708597855556,-1372.67,0.00035711,2]
[314859680,1708597855566,-1372.67,0.00035711,2]
[314859681,1708597855576,-1372.67,0.00035711,2]
[314859682,1708597855585,-1372.67,0.00035711,2]
[314859683,1708597855594,-150.0,0.00035711,30]
[314859684,1708597855604,-150.0,0.00035711,30]
[314859685,1708597855613,-50000.0,0.00035712,15]
[314859686,1708597855622,-50000.0,0.00035712,15]
[314859687,1708597855631,-50000.0,0.00035712,15]
[314859688,1708597855640,-50000.0,0.00035712,15]
[314859689,1708597855649,-50000.0,0.00035712,15]
[314859690,1708597855659,-15189.18236,0.00035712,15]
[314859691,1708597856338,-34810.81764,0.00035712,15]
[314859692,1708597856347,-50000.0,0.00035712,15]
[314859693,1708597856357,-50000.0,0.00035712,15]
[314859694,1708597856367,-36118.02142286,0.00035712,15]
[314859695,1708597856378,-977.46048853,0.00035712,15]
[314859696,1708597856514,-279.98114939,0.00035616,7]
[314859697,1708597856526,-1359.64999998,0.00035616,7]
[314859698,1708597856548,-1963.54418163,0.00035616,7]
[314859699,1708597856557,-3712.77792987,0.00035712,15]
[314859700,1708597857881,-150.0,0.00034827,2]
[314859701,1708597857891,-150.0,0.0003485,2]
[314859702,1708597857900,-150.0,0.00034902,2]
[314859703,1708597857910,-150.0,0.00034931,2]
[314859704,1708597857919,-150.0,0.00034972,2]
[314859705,1708597857929,-150.0,0.00034989,2]
[314859706,1708597857938,-18.61647302,0.00035023,2]
[314859707,1708597857950,-131.38352698,0.00035023,2]
[314859708,1708597857959,-150.0,0.00035046,2]
[314859709,1708597857968,-150.0,0.00035131,2]
[314859710,1708597857977,-150.0,0.00035137,2]
[314859711,1708597857987,-150.0,0.00035168,2]
[314859712,1708597857995,-150.0,0.00035201,2]
[314859713,1708597858005,-150.0,0.00035228,2]
[314859714,1708597858014,-150.0,0.00035243,2]
[314859715,1708597858023,-14.97535336,0.00035255,2]
[314859716,1708597858043,-135.02464664,0.00035255,2]
[314859717,1708597858052,-150.0,0.00035272,2]
[314859718,1708597858062,-14.54931336,0.00035351,2]
[314859719,1708597858086,-135.45068664,0.00035351,2]
[314859720,1708597858095,-150.0,0.00035406,2]
[314859721,1708597858104,-150.0,0.00035461,2]
[314859722,1708597858113,-150.0,0.00035462,2]
[314859723,1708597858122,-150.0,0.00035502,2]
[314859724,1708597858131,-150.0,0.00035574,2]
[314859725,1708597858141,-150.0,0.00035593,2]
[314859726,1708597858150,-150.0,0.00035607,2]
[314859727,1708597858159,-150.0,0.0003563,2]
[314859728,1708597858167,-150.0,0.00035637,2]
[314859729,1708597858177,-657.5029654,0.0003564,7]
[314859730,1708597858189,-2727.47376045,0.0003564,7]
[314859731,1708597858213,-218.19860515,0.0003564,7]
[314859732,1708597858223,-158.613,0.00035664,2]
[314859733,1708597858232,-9191.74015874,0.00035712,15]
[314859734,1708597858242,-5208.70120399,0.00035712,15]
[314859735,1708597858517,-150.0,0.00034696,2]
[314859736,1708597858526,-150.0,0.0003505,2]
[314859737,1708597858537,-41.99424017,0.00035434,2]
[314859738,1708597858954,-108.00575983,0.00035434,2]
[314859739,1708597858964,-500.0,0.00035616,2]
[314859740,1708597858973,-352.062,0.00035664,2]
[314859741,1708597858983,-38386.50941113,0.00035712,15]
[314859742,1708597858995,-6404.78938488,0.00035712,15]
[314859743,1708597859005,-2650.03692742,0.00035712,15]
[314859744,1708597859047,-10350.69269973,0.00035712,15]
[314859745,1708597859059,-36999.27037285,0.00035712,15]
[314859746,1708597859068,-50000.0,0.00035712,15]
[314859747,1708597859077,-50000.0,0.00035712,15]
[314859748,1708597859086,-50000.0,0.00035712,15]
[314859749,1708597859095,-50000.0,0.00035712,15]
[314859750,1708597859104,-50000.0,0.00035712,15]
[314859751,1708597859114,-40521.29345419,0.00035712,15]
[314859752,1708597859123,-50000.0,0.00035712,15]
[314859753,1708597859132,-50000.0,0.00035712,15]
[314859754,1708597859141,-33444.08758885,0.00035712,15]
[314859755,1708597859150,-50000.0,0.00035712,15]
[314859756,1708597859160,-50000.0,0.00035712,15]
[314859757,1708597859169,-44705.56207676,0.00035712,15]
[314859758,1708597859178,-151.0,0.00035712,7]
[314859759,1708597859189,-151.0,0.00035712,7]
[314859760,1708597859198,-151.0,0.00035712,7]
[314859761,1708597859207,-151.0,0.00035712,7]
[314859762,1708597859216,-151.0,0.00035712,7]
[314859763,1708597859225,-151.0,0.00035712,7]
[314859764,1708597859234,-151.0,0.00035712,7]
[314859765,1708597859243,-151.0,0.00035712,7]
[314859766,1708597859253,-151.0,0.00035712,7]
[314859767,1708597859262,-201.852376,0.00035712,7]
[314859768,1708597859271,-201.852376,0.00035712,7]
[314859769,1708597859280,-201.852376,0.00035712,7]
[314859770,1708597859290,-201.852376,0.00035712,7]
[314859771,1708597859299,-201.852376,0.00035712,7]
[314859772,1708597859309,-201.852376,0.00035712,7]
[314859773,1708597859319,-151.0,0.00035712,7]
[314859774,1708597859328,-151.0,0.00035712,7]
[314859775,1708597859337,-151.0,0.00035712,7]
[314859776,1708597859347,-151.0,0.00035712,7]
[314859777,1708597859356,-151.0,0.00035712,7]
[314859778,1708597859365,-151.0,0.00035712,7]
[314859779,1708597859374,-151.0,0.00035712,7]
[314859780,1708597859384,-151.0,0.00035712,7]
[314859781,1708597859393,-151.0,0.00035712,7]
[314859782,1708597859402,-188.367535,0.00035712,7]
[314859783,1708597859411,-151.0,0.00035712,7]
[314859784,1708597859421,-151.0,0.00035712,7]
[314859785,1708597859430,-151.0,0.00035712,7]
[314859786,1708597859440,-151.0,0.00035712,7]
[314859787,1708597859449,-151.0,0.00035712,7]
[314859788,1708597859458,-151.0,0.00035712,7]
[314859789,1708597859468,-151.0,0.00035712,7]
[314859790,1708597859477,-151.0,0.00035712,7]
[314859791,1708597859487,-151.0,0.00035712,7]
[314859792,1708597859498,-151.0,0.00035712,7]
[314859793,1708597859507,-151.0,0.00035712,7]
[314859794,1708597859516,-151.0,0.00035712,7]
[314859795,1708597859526,-195.821773,0.00035712,7]
[314859796,1708597859537,-151.0,0.00035712,7]
[314859797,1708597859546,-178.658811,0.00035712,7]
[314859798,1708597859555,-178.658811,0.00035712,7]
[314859799,1708597859564,-178.658811,0.00035712,7]
[314859800,1708597859574,-500.091619,0.00035712,7]
[314859801,1708597859583,-500.091619,0.00035712,7]
[314859802,1708597859592,-178.658811,0.00035712,7]
[314859803,1708597859601,-178.658811,0.00035712,7]
[314859804,1708597859610,-178.658811,0.00035712,7]
[314859805,1708597859619,-500.091619,0.00035712,7]
[314859806,1708597859628,-151.0,0.00035712,7]
[314859807,1708597859638,-500.091619,0.00035712,7]
[314859808,1708597859647,-151.0,0.00035712,7]
[314859809,1708597859657,-151.0,0.00035712,7]
[314859810,1708597859666,-151.0,0.00035712,7]
[314859811,1708597859676,-151.0,0.00035712,7]
[314859812,1708597859686,-151.0,0.00035712,7]
[314859813,1708597859697,-280.106327,0.00035712,7]
[314859814,1708597859706,-280.106327,0.00035712,7]
[314859815,1708597859716,-280.106327,0.00035712,7]
[314859816,1708597859725,-280.106327,0.00035712,7]
[314859817,1708597859734,-151.0,0.00035712,7]
[314859818,1708597859743,-151.0,0.00035712,7]
[314859819,1708597859753,-646.467649,0.00035712,7]
[314859820,1708597859762,-646.467649,0.00035712,7]
[314859821,1708597859772,-646.467649,0.00035712,7]
[314859822,1708597859781,-646.467649,0.00035712,7]
[314859823,1708597859790,-764.026149,0.00035712,7]
[314859824,1708597859799,-764.026149,0.00035712,7]
[314859825,1708597859808,-764.026149,0.00035712,7]
[314859826,1708597859817,-764.026149,0.00035712,7]
[314859827,1708597859827,-2037.29073,0.00035712,7]
[314859828,1708597859837,-2037.29073,0.00035712,7]
[314859829,1708597859847,-2037.29073,0.00035712,7]
[314859830,1708597859857,-2037.29073,0.00035712,7]
[314859831,1708597859867,-151.0,0.00035712,7]
[314859832,1708597859876,-151.0,0.00035712,7]
[314859833,1708597859887,-151.0,0.00035712,7]
[314859834,1708597859896,-151.0,0.00035712,7]
[314859835,1708597859906,-151.0,0.00035712,7]
[314859836,1708597859915,-151.0,0.00035712,7]
[314859837,1708597859925,-151.0,0.00035712,7]
[314859838,1708597859934,-151.0,0.00035712,7]
[314859839,1708597859945,-153.90666,0.00035712,7]
[314859840,1708597859954,-151.0,0.00035712,7]
[314859841,1708597859963,-151.0,0.00035712,7]
[314859842,1708597859973,-319.400995,0.00035712,7]
[314859843,1708597859982,-319.400995,0.00035712,7]
[314859844,1708597860324,-151.0,0.00035712,7]
[314859845,1708597860334,-375.203115,0.00035712,7]
[314859846,1708597860344,-151.0,0.00035712,7]
[314859847,1708597860354,-375.203115,0.00035712,7]
[314859848,1708597860364,-319.400995,0.00035712,7]
[314859849,1708597860373,-319.400995,0.00035712,7]
[314859850,1708597860382,-375.203115,0.00035712,7]
[314859851,1708597860391,-192.013016,0.00035712,7]
[314859852,1708597860401,-375.203115,0.00035712,7]
[314859853,1708597860410,-863.292361,0.00035712,7]
[314859854,1708597860419,-863.292361,0.00035712,7]
[314859855,1708597860429,-151.0,0.00035712,7]
[314859856,1708597860438,-151.0,0.00035712,7]
[314859857,1708597860448,-863.292361,0.00035712,7]
[314859858,1708597860457,-863.292361,0.00035712,7]
[314859859,1708597860467,-1738.159296,0.00035712,7]
[314859860,1708597860476,-1738.159296,0.00035712,7]
[314859861,1708597860485,-151.0,0.00035712,7]
[314859862,1708597860497,-151.0,0.00035712,7]
[314859863,1708597860507,-296.536982,0.00035712,7]
[314859864,1708597860516,-891.525773,0.00035712,7]
[314859865,1708597860525,-1738.159296,0.00035712,7]
[314859866,1708597860536,-891.525773,0.00035712,7]
[314859867,1708597860546,-1738.159296,0.00035712,7]
[314859868,1708597860556,-891.525773,0.00035712,7]
[314859869,1708597860565,-891.525773,0.00035712,7]
[314859870,1708597860577,-151.0,0.00035712,7]
[314859871,1708597860587,-151.0,0.00035712,7]
[314859872,1708597860596,-151.0,0.00035712,7]
[314859873,1708597860606,-151.0,0.00035712,7]
[314859874,1708597860615,-507.55354,0.00035712,7]
[314859875,1708597860624,-507.55354,0.00035712,7]
[314859876,1708597860633,-507.55354,0.00035712,7]
[314859877,1708597860642,-507.55354,0.00035712,7]
[314859878,1708597860652,-182.007343,0.00035712,7]
[314859879,1708597860661,-182.007343,0.00035712,7]
[314859880,1708597860670,-182.007343,0.00035712,7]
[314859881,1708597860679,-182.007343,0.00035712,7]
[314859882,1708597860690,-151.0,0.00035712,7]
[314859883,1708597860699,-151.0,0.00035712,7]
[314859884,1708597860709,-151.0,0.00035712,7]
[314859885,1708597860718,-151.0,0.00035712,7]
[314859886,1708597860727,-151.0,0.00035712,7]
[314859887,1708597860737,-151.0,0.00035712,7]
[314859888,1708597860746,-151.0,0.00035712,7]
[314859889,1708597860755,-151.0,0.00035712,7]
[314859890,1708597860765,-151.0,0.00035712,7]
[314859891,1708597860775,-151.0,0.00035712,7]
[314859892,1708597860784,-500.0,0.00035712,7]
[314859893,1708597860794,-500.0,0.00035712,7]
[314859894,1708597860803,-500.0,0.00035712,7]
[314859895,1708597860812,-500.0,0.00035712,7]
[314859896,1708597860822,-164.940406,0.00035712,7]
[314859897,1708597860831,-164.940406,0.00035712,7]
[314859898,1708597860841,-151.0,0.00035712,7]
[314859899,1708597860850,-229.61656,0.00035712,7]
[314859900,1708597860860,-164.940406,0.00035712,7]
[314859901,1708597860869,-164.940406,0.00035712,7]
[314859902,1708597860878,-253.89827,0.00035712,7]
[314859903,1708597860887,-205.701602,0.00035712,7]
[314859904,1708597860897,-253.89827,0.00035712,7]
[314859905,1708597860906,-205.701602,0.00035712,7]
[314859906,1708597860916,-156.990818,0.00035712,7]
[314859907,1708597860926,-156.990818,0.00035712,7]
[314859908,1708597860935,-205.701602,0.00035712,7]
[314859909,1708597860946,-205.701602,0.00035712,7]
[314859910,1708597860955,-156.990818,0.00035712,7]
[314859911,1708597860965,-156.990818,0.00035712,7]
[314859912,1708597860974,-151.0,0.00035712,7]
[314859913,1708597860984,-151.0,0.00035712,7]
[314859914,1708597860993,-253.89827,0.00035712,7]
[314859915,1708597861003,-253.89827,0.00035712,7]
[314859916,1708597861013,-514.098445,0.00035712,2]
[314859917,1708597861022,-514.098445,0.00035712,2]
[314859918,1708597861032,-151.0,0.00035712,7]
[314859919,1708597861042,-151.0,0.00035712,7]
[314859920,1708597861052,-514.098445,0.00035712,2]
[314859921,1708597861062,-514.098445,0.00035712,2]
[314859922,1708597861071,-151.0,0.00035712,7]
[314859923,1708597861081,-151.0,0.00035712,7]
[314859924,1708597861090,-151.0,0.00035712,7]
[314859925,1708597861099,-151.0,0.00035712,7]
[314859926,1708597861108,-151.0,0.00035712,7]
[314859927,1708597861118,-151.0,0.00035712,7]
[314859928,1708597861128,-151.0,0.00035712,7]